Cogmind - Beta 13 @@@ ROGUE MODE // 2024.05.13 @ 20:45:07 Player: Some Pennies Result: Destroyed by X-57 Shotgunner with High-powered Shotgun Performance ------------- Evolutions (2) 1000 Regions Visited (9) 1800 Robots Destroyed (247) 1235 Value Destroyed (7489) 7489 Prototype IDs (52) 1040 Alien Tech Used (0) 0 Bonus (3595) 3595 TOTAL SCORE: 16159 Bonus ------- High Alert Combat Kills 2440 Follower Combat Kills 216 Entered Garrisons 200 Used RIF Installer 500 Aligned with FarCom 300 Friendly Fire -61 Cogmind --------- Core Integrity 0/550 Matter 250/300 Energy 160/160 System Corruption 23% Temperature Cool (0) Movement Flying (162) Ox2 Location -8/Materials Parts ------- > --- POWER (1) -------- Light Nuclear Core > --- PROPULSION (4) --- Improved Flight Unit Improved Flight Unit Improved Cesium-ion Thruster Improved Cesium-ion Thruster > --- UTILITY (4) ------ Improved Heat Sink High-capacity Storage Unit Improved Light Armor Plating > --- WEAPON (2) ------- Advanced Beam Cannon > --- INVENTORY (20) --- Light Nuclear Core Improved Flight Unit Hacking Suite Hacking Suite Hacking Suite System Shield System Shield Relay Coupler [NC] (27) Relay Coupler [NC] (25) Splice Drone Bay (6/6) Mini Grenade Launcher Improved Grenade Launcher Improved Datajack Katana Signal Generator Peak State ------------ > --- POWER ------------ Heavy Ion Engine > --- PROPULSION ------- Armored Treads Advanced Treads Advanced Treads Advanced Treads > --- UTILITY ---------- Improved Heat Sink High-capacity Storage Unit Advanced Weight Redist. System Hardened Medium Armor Plating > --- WEAPON ----------- Improved EM Pulse Cannon Improved EM Pulse Cannon > --- INVENTORY -------- Light Nuclear Core Improved Flight Unit Cesium-ion Thruster Machine Analyzer 0b10 Alert Chip Improved Light Armor Plating Hacking Suite Hacking Suite Hacking Suite System Shield System Shield Recalibrator Splice Drone Bay Gauss Rifle Makeshift Shrapnel Gun Mini Grenade Launcher Improved Grenade Launcher Improved Datajack Katana Signal Generator [Rating: 40] Favorites ----------- Power Heavy Ion Engine Engine Heavy Ion Engine Power Core Fission Core Propulsion Light Treads Treads Light Treads Leg Carbon-fiber Leg Wheel Wheel Flight Unit Flight Unit Utility High-capacity Storage Unit Device Improved Heat Sink Storage High-capacity Storage Unit Processor Machine Analyzer Hackware Relay Coupler [Sentry] Protection Hardened Medium Armor Plating Weapon Advanced Beam Cannon Energy Gun Particle Gun Energy Cannon Advanced Beam Cannon Ballistic Gun Assault Rifle Ballistic Cannon Light Cannon Launcher Improved Grenade Launcher Slashing Weapon Katana Special Melee Weapon Improved Datajack Build | -11 -10 -10 -9 -9 -9 -8 -8 -8 -8 ------- Run | Yrd Mat Min Mat Min Exi Min Mat Gar Mat Slots Evolved 4 | . . . 2 . . . 2 . . Power . | . . . . . . . . . . Propulsion 2 | . . . 1 . . . 1 . . Utility 2 | . . . 1 . . . 1 . . Weapon . | . . . . . . . . . . Parts Attached 278 | 8 20 24 40 14 6 5 72 54 35 Power 15 | 1 1 . 4 . . . 5 3 1 Engine 8 | 1 1 . 3 . . . 2 1 . Core 7 | . . . 1 . . . 3 2 1 Reactor . | . . . . . . . . . . Propulsion 77 | 2 1 4 12 2 3 1 18 21 13 Treads 64 | 2 1 2 12 2 3 1 17 16 8 Leg 1 | . . . . . . . . 1 . Wheel 2 | . . 2 . . . . . . . Hover . | . . . . . . . . . . Flight 10 | . . . . . . . 1 4 5 Utility 71 | 2 6 8 14 7 1 . 13 12 8 Device 38 | 1 3 2 7 6 . . 8 7 4 Storage 6 | 1 2 . 1 . 1 . 1 . . Processor 2 | . . . 1 . . . 1 . . Hackware 3 | . . . . . . . . 1 2 Protection 22 | . 1 6 5 1 . . 3 4 2 Artifact . | . . . . . . . . . . Weapon 115 | 3 12 12 10 5 2 4 36 18 13 Energy Gun 23 | . . 3 4 1 . . 4 5 6 Energy Cannon 37 | . . . 5 3 1 2 19 5 2 Ballistic Gun 19 | 3 5 3 . . . . 4 4 . Ballistic Cannon 6 | . 3 2 . . . 1 . . . Launcher 15 | . 1 4 1 1 . 1 4 1 2 Special Weapon . | . . . . . . . . . . Impact Weapon . | . . . . . . . . . . Slashing Weapon 2 | . . . . . . . 1 . 1 Piercing Weapon . | . . . . . . . . . . Special Melee Weapon 13 | . 3 . . . 1 . 4 3 2 Unidentified Prototypes 7 | . . 1 1 . . . 4 . 1 Corrupted Parts 4 | . . . . . . . . 4 . System Corruption 19 | . . . . . . . . 19 . Parts Lost 30 | . 1 4 1 2 . . 6 6 10 Power 1 | . . . . . . . . . 1 Propulsion 13 | . . 1 . . . . 4 4 4 Utility 11 | . 1 1 . 2 . . 2 1 4 Weapon 5 | . . 2 1 . . . . 1 1 Highest Loss Streak 5 | . 1 3 1 2 . . 4 2 5 To Critical Strikes . | . . . . . . . . . . Average Slot Usage (%) 97 | . 99 99 99 99 100 100 98 92 93 Engine 7 | . 14 14 9 11 11 11 3 5 . Core 2 | . . . 1 . . . 5 3 8 Treads 31 | . 27 24 31 33 33 33 35 29 33 Device 15 | . 10 4 16 21 22 22 17 16 12 Storage 10 | . 14 14 11 11 11 11 9 9 9 Protection 5 | . 2 9 5 . . . 8 5 4 Energy Gun 5 | . . 19 4 1 . . 2 8 8 Energy Cannon 10 | . . . 17 20 12 17 13 7 8 Ballistic Gun 3 | . 19 6 . . . . . 1 . Special Melee Weapon 1 | . 3 . . . 9 . . 1 . Naked Turns . | . . . . . . . . . . Heaviest Build 93 | 13 30 39 64 65 58 58 93 86 75 Greatest Support 95 | 40 40 40 60 60 63 63 95 80 80 Greatest Overweight (x) 20 | . 1 1 1 1 . . 2 20 16 Average Overweight (x) . | . . . . . . . . . . Largest Inventory Capacity 20 | 8 15 15 20 20 20 20 20 20 20 Average Capacity 18 | 7 11 15 17 20 20 20 20 20 20 Most Carried 20 | 4 14 15 20 20 20 20 20 20 20 Average Carried 17 | 2 10 14 17 19 19 20 19 19 19 Final Capacity 20 | 8 15 15 20 20 20 20 20 20 20 Final Carried 20 | 3 14 15 20 20 20 20 20 20 15 Class Distribution -------------------- 64% | Scavenger-Mutant 35% | Mutant Dominant Class ---------------- Mutant | -10/Materials Mutant | -10/Mines Scavenger-Mutant | -9/Materials Scavenger-Mutant | -9/Mines Scavenger-Mutant | -9/Exiles Scavenger-Mutant | -8/Mines Mutant | -8/Materials Scavenger-Mutant | -8/Garrison Scavenger-Mutant | -8/Materials Resources | -11 -10 -10 -9 -9 -9 -8 -8 -8 -8 ----------- Run | Yrd Mat Min Mat Min Exi Min Mat Gar Mat Matter Collected 4079 | 217 719 457 450 146 . 130 819 732 409 Remotely . | . . . . . . . . . . Salvage Created 9092 | 128 654 246 2279 513 . 152 2649 1280 1191 Parts 484 | 10 46 7 133 20 . 6 142 57 63 Haulers Intercepted 15 | . 1 . 6 . . . 6 . 2 Recyclers Shooed 13 | . 4 4 2 . . . 3 . . Parts Field Recycled . | . . . . . . . . . . Retrieved Matter . | . . . . . . . . . . Parts Self-Destructed . | . . . . . . . . . . Prevented . | . . . . . . . . . . Kills | -11 -10 -10 -9 -9 -9 -8 -8 -8 -8 ------- Run | Yrd Mat Min Mat Min Exi Min Mat Gar Mat Combat Hostiles Destroyed 184 | . 11 22 36 10 . 4 49 32 20 Guns 44 | . 4 8 8 . . . 10 7 7 Cannons 83 | . 4 . 24 7 . 1 23 16 8 AOE 46 | . 3 14 2 1 . 3 14 5 4 Classes Destroyed 22 | 2 6 1 5 2 . 1 3 2 . Worker 14 | . 2 . 6 . . 1 4 . 1 Builder 4 | . . . 3 . . . 1 . . Tunneler 6 | 2 1 . . . . . 1 . 2 Hauler 15 | . 1 . 6 . . . 6 . 2 Recycler 18 | 1 4 2 4 1 . 1 4 . 1 Mechanic 2 | . . . . 1 . . 1 . . Operator 10 | . 1 . 2 . . . 6 . 1 Watcher 13 | . 3 . 5 . . . 4 . 1 Swarmer 42 | . 6 3 10 1 . 3 11 8 . Cutter 4 | . . . . . . . 3 1 . Grunt 72 | . 5 . 14 7 . . 23 10 13 Brawler 4 | . . . 1 1 . . . 1 1 Duelist 7 | . . . 1 1 . . 3 1 1 Protector 3 | . . . 1 . . . . 1 1 Sentry 23 | . . . 9 . . . 5 6 3 Demolisher 1 | . . . . . . . . 1 . Specialist 2 | . . . . . . . 2 . . Hunter 3 | . . . . . . 1 1 . 1 Programmer 3 | . . . . . . . . 3 . Heavy 1 | . . . . . . . 1 . . Zionite 1 | . . . . 1 . . . . . Assembled 19 | . . 19 . . . . . . . Best Kill Streak 11 | 3 6 11 6 4 . 3 7 4 5 Combat Bots Only 11 | . 3 11 5 4 . 3 7 4 5 Max Kills in Single Turn 4 | 1 2 4 2 2 . 2 4 3 3 Gunslinging 1 | . . 1 1 . . . . . . Exploded 4 | . 2 4 1 1 . 2 4 3 3 Melee . | . . . . . . . . . . Uniques/NPCs Destroyed . | . . . . . . . . . . Combat | -11 -10 -10 -9 -9 -9 -8 -8 -8 -8 -------- Run | Yrd Mat Min Mat Min Exi Min Mat Gar Mat Hostile Shots Fired 740 | . 47 42 107 32 . 10 195 159 148 Missed 193 | . 13 14 27 6 . . 51 43 39 Damage Taken 9203 | . 336 945 1063 305 . 150 2507 1993 1904 Core 856 | . 85 75 62 48 . 22 162 243 159 Absorbed by Shields . | . . . . . . . . . . Regen/Repaired (Parts) 418 | . 131 . 118 . . . 169 . . Core Remaining (%) 67 | 100 . 36 . . . 67 . . . Volleys Fired 611 | 12 61 37 116 17 . 7 163 119 79 Largest 2 | 2 2 2 2 2 . 2 2 2 2 Hottest 143 | 40 70 128 136 136 . 112 143 140 143 Shots Fired 1166 | 24 118 73 220 34 . 12 318 211 156 Gun 445 | 24 78 56 47 . . . 76 92 72 Cannon 689 | . 38 9 168 33 . 10 233 117 81 Launcher 32 | . 2 8 5 1 . 2 9 2 3 Special . | . . . . . . . . . . Kinetic 220 | 24 116 26 . . . . 19 35 . Thermal 809 | . . 39 179 31 . . 285 122 153 Explosive 32 | . 2 8 5 1 . 2 9 2 3 Electromagnetic 105 | . . . 36 2 . 10 5 52 . Robot Hit Streak 19 | 8 6 9 19 14 . 9 16 17 12 Robot Miss Streak 7 | 1 5 4 7 3 . 1 5 3 5 Penetration Max . | . . . . . . . . . . Secondary Targets 6 | . 1 1 2 . . . . 2 . Max Gunslinging Chain 1 | . 1 1 1 . . . . 1 . Shots Hit Robots 735 | 18 67 44 134 23 9 9 202 130 99 Core Hits 366 | 5 31 40 72 14 . 8 101 48 47 Critical Kills 6 | . . . 3 1 . . . 1 1 Critical Parts Destroyed 1 | . . . . . . . . 1 . Critical Strikes 16 | . . . 3 1 . . 5 4 3 Burn 8 | . . . . . . . 5 1 2 Meltdown 6 | . . . 3 1 . . . 1 1 Destroy 1 | . . . . . . . . 1 . Corrupt 1 | . . . . . . . . 1 . Melee Attacks 39 | . 4 . . . 9 . 3 20 3 Impact . | . . . . . . . . . . Slashing 2 | . . . . . . . 1 . 1 Piercing . | . . . . . . . . . . Sneak Attacks 28 | . 4 . . . 9 . 2 13 . Combat Hostiles 3 | . . . . . . . . 3 . Follow-up Attacks . | . . . . . . . . . . Damage Inflicted 18008 | 204 1008 1348 3250 672 . 464 5742 2871 2449 Guns 4760 | 204 587 562 505 . . . 1153 866 883 Cannons 9103 | . 311 90 2187 493 . 215 3216 1500 1091 Explosions 4116 | . 110 696 554 177 . 243 1356 505 475 Melee . | . . . . . . . . . . Ramming 29 | . . . 4 2 . 6 17 . . Kinetic 1885 | 204 898 263 . . . . 328 192 . Thermal 10605 | . . 389 2448 474 . 45 4013 1262 1974 Explosive 3807 | . 110 696 453 177 . 198 1291 407 475 Electromagnetic 1682 | . . . 345 19 . 215 93 1010 . Impact . | . . . . . . . . . . Slashing . | . . . . . . . . . . Piercing . | . . . . . . . . . . Highest Corruption 23 | . 1 1 . . . . . 20 23 Average Corruption 9 | . 1 1 . . . . . 9 21 Corruption Purged . | . . . . . . . . . . Corruption Blocked . | . . . . . . . . . . Effects 100 | . 1 11 . . . . . 30 58 Message Errors 22 | . . . . . . . . 5 17 Matter Fused 24 | . . 4 . . . . . 10 10 Heat Flow Errors 11 | . 1 3 . . . . . 5 2 Energy Discharges 10 | . . . . . . . . 4 6 Parts Rejected 3 | . . 1 . . . . . . 2 Parts Fused 1 | . . 1 . . . . . . . Data Loss (minor) 16 | . . 1 . . . . . 4 11 Data Loss (major) 2 | . . . . . . . . 1 1 Misfires 4 | . . 1 . . . . . 1 2 Misdirections 3 | . . . . . . . . . 3 Weapon Failures 4 | . . . . . . . . . 4 Overload Shots . | . . . . . . . . . . Overflow Damage 352 | . 9 21 33 6 . 38 186 25 34 Projectiles 177 | . 9 . 29 6 . . 100 15 18 Explosions 175 | . . 21 4 . . 38 86 10 16 Melee . | . . . . . . . . . . Knockbacks 5 | . 3 2 . . . . . . . Impact . | . . . . . . . . . . Kinetic 5 | . 3 2 . . . . . . . Secondary . | . . . . . . . . . . Self-Inflicted Damage 390 | . . 52 139 . . 27 127 . 45 Shots 11 | . . 2 4 . . 1 2 . 2 Rammed 3 | . . . 1 . . 1 1 . . Targets Rammed 5 | . . . 1 1 . 1 2 . . Kicked . | . . . . . . . . . . Crushed 2 | . . . . 1 . . 1 . . Highest Temperature 526 | . 262 334 357 195 . 9 441 526 378 Average Temperature 95 | . 82 86 67 61 . 3 106 115 110 Received Heat Transfer 2898 | . 126 141 321 183 . . 1026 453 648 Effects 19 | . . 1 2 . . . 8 4 4 Shutdowns 6 | . . . 1 . . . 1 2 2 Energy Bleed 7 | . . 1 1 . . . 2 1 2 Interference 4 | . . . . . . . 3 1 . Short Circuit 1 | . . . . . . . 1 . . Damage (minor) 1 | . . . . . . . 1 . . Siege Activations . | . . . . . . . . . . Robots Corrupted 1 | . . . . . . . . 1 . Combat Hostiles 1 | . . . . . . . . 1 . Parts Fried 6 | . . . . . . 1 . 5 . Impact Corruptions . | . . . . . . . . . . Robots Melted 11 | . . . 3 2 . . 2 3 1 Combat Hostiles 10 | . . . 2 2 . . 2 3 1 Parts Melted 52 | . . . 12 5 . . 19 6 10 Heat Transferred 19163 | . . 851 4181 814 . 50 7376 2200 3691 Parts Sabotaged . | . . . . . . . . . . Parts Stolen . | . . . . . . . . . . Parts Stripped . | . . . . . . . . . . Power Chain Reactions 5 | . . . 2 . . 1 1 1 . Alert | -11 -10 -10 -9 -9 -9 -8 -8 -8 -8 ------- Run | Yrd Mat Min Mat Min Exi Min Mat Gar Mat Peak Influence 3142 | 15 188 88 928 483 . 123 1109 3142 2019 Initial 1531 | . 9 . . 361 . . . 720 1531 Average 708 | 7 44 13 469 368 . 64 366 1702 1776 Maximum Alert Level 5 | . . . 3 2 . . 4 5 5 Low Security (%) 36 | 100 100 100 22 . . 100 33 . . Level 1 15 | . . . 27 54 . . 34 . . Level 2 10 | . . . 18 45 . . 21 . . Level 3 13 | . . . 31 . . . 8 26 . Level 4 7 | . . . . . . . 2 22 24 Level 5 17 | . . . . . . . . 50 75 High Security . | . . . . . . . . . . Max Security . | . . . . . . . . . . Squads Dispatched 23 | . 2 . 2 1 . . 11 . 7 Investigation 3 | . 1 . . . . . 2 . . Extermination . | . . . . . . . . . . Reinforcement 13 | . 1 . 1 . . . 8 . 3 Assault 5 | . . . 1 1 . . 1 . 2 Garrison 2 | . . . . . . . . . 2 Intercept . | . . . . . . . . . . Searches Triggered . | . . . . . . . . . . Construction Impeded . | . . . . . . . . . . Haulers Reinforced . | . . . . . . . . . . Active Scanning Responses . | . . . . . . . . . . Cargo Convoy Interrupts . | . . . . . . . . . . Stealth | -11 -10 -10 -9 -9 -9 -8 -8 -8 -8 --------- Run | Yrd Mat Min Mat Min Exi Min Mat Gar Mat Distress Signals 19 | . 4 . 6 . . . 4 . 5 Communications Jammed . | . . . . . . . . . . Distress Signals . | . . . . . . . . . . Times Spotted 286 | . 25 27 57 15 . 4 73 39 46 Peak Tracking Total 8 | . 5 8 5 5 . 3 5 5 8 Tactical Retreats 17 | . 1 1 8 . . . 1 4 2 Traps | -11 -10 -10 -9 -9 -9 -8 -8 -8 -8 ------- Run | Yrd Mat Min Mat Min Exi Min Mat Gar Mat Traps Triggered 6 | . . . . . . . 2 4 . Indirectly . | . . . . . . . . . . Trap Hack Attempts 45 | . 30 . . . . . 15 . . Triggered 1 | . 1 . . . . . . . . Disarmed 5 | . 2 . . . . . 3 . . Reprogrammed 2 | . 2 . . . . . . . . Reused . | . . . . . . . . . . Traps Extracted . | . . . . . . . . . . Installed . | . . . . . . . . . . Triggered . | . . . . . . . . . . Machines | -11 -10 -10 -9 -9 -9 -8 -8 -8 -8 ---------- Run | Yrd Mat Min Mat Min Exi Min Mat Gar Mat Machines Disabled 24 | . 1 1 3 1 . . 11 4 3 Max in Single Turn 2 | . 1 1 1 1 . . 2 1 1 Garrison Access 1 | . . . . . . . . . 1 Garrison Relay 4 | . . . . . . . . 4 . Machines Repaired . | . . . . . . . . . . Machines Dismantled . | . . . . . . . . . . Machines Sabotaged . | . . . . . . . . . . Overloaded Fab Kills . | . . . . . . . . . . Hacking | -11 -10 -10 -9 -9 -9 -8 -8 -8 -8 --------- Run | Yrd Mat Min Mat Min Exi Min Mat Gar Mat Machines Accessed 45 | . 9 2 15 . 2 . 10 4 3 Terminals 28 | . 6 . 10 . . . 5 4 3 Fabricators . | . . . . . . . . . . Repair Stations 4 | . 1 . 2 . . . 1 . . Recycling Units 5 | . 2 . 2 . . . 1 . . Scanalyzers 3 | . . . 1 . . . 2 . . Garrison Access 1 | . . . . . . . 1 . . Total Hacks 126 | . 30 2 49 . 2 . 25 6 12 Successful 62 | . 17 2 21 . 2 . 13 2 5 Failed 63 | . 13 . 27 . . . 12 4 7 Catastrophic 8 | . 3 . 2 . . . 1 2 . Database Lockouts 1 | . . . 1 . . . . . . Manual 54 | . 16 . 18 . 1 . 10 . 9 Terminals 88 | . 22 . 35 . . . 13 6 12 Fabricators . | . . . . . . . . . . Repair Stations 14 | . 4 . 7 . . . 3 . . Recycling Units 14 | . 4 . 5 . . . 5 . . Scanalyzers 5 | . . . 2 . . . 3 . . Garrison Access 1 | . . . . . . . 1 . . Terminal Hacks 38 | . 10 2 14 . 2 . 3 2 5 Record 1 | . . . . . 1 . . . . Robot Analysis 8 | . 5 . 2 . . . . . 1 Prototype ID Bank 6 | . 3 . 2 . . . 1 . . Open Door 3 | . . 2 . . . . . 1 . Emergency Access Points 4 | . . . 1 . . . 1 1 1 Terminal Index 1 | . . . 1 . . . . . . Locate Traps 4 | . 1 . 2 . . . . . 1 Maintenance Status 1 | . . . 1 . . . . . . Hauler Manifests 3 | . . . 1 . . . 1 . 1 Zone Layout 6 | . 1 . 4 . . . . . 1 Derelict Proto ID Bank 1 | . . . . . 1 . . . . Fabricator Hacks . | . . . . . . . . . . Repair Station Hacks 9 | . 4 . 3 . . . 2 . . Scan Component 5 | . 2 . 2 . . . 1 . . Repair 4 | . 2 . 1 . . . 1 . . Recycling Unit Hacks 6 | . 3 . 1 . . . 2 . . Report Inventory 2 | . 1 . . . . . 1 . . Retrieve Matter 2 | . 2 . . . . . . . . Retrieve Components 2 | . . . 1 . . . 1 . . Scanalyzer 4 | . . . 2 . . . 2 . . Insert Component 2 | . . . 1 . . . 1 . . Analyze 2 | . . . 1 . . . 1 . . Garrison Access Hacks 1 | . . . . . . . 1 . . Unlock Access 1 | . . . . . . . 1 . . Unauthorized Hacks 4 | . . . 1 . . . 3 . . Terminals 2 | . . . . . . . 2 . . Assimilate 1 | . . . . . . . 1 . . Botnet 1 | . . . . . . . 1 . . Fabricators . | . . . . . . . . . . Repair Stations . | . . . . . . . . . . Recycling Units 2 | . . . 1 . . . 1 . . Mask 2 | . . . 1 . . . 1 . . Scanalyzers . | . . . . . . . . . . Garrison Access . | . . . . . . . . . . Data Cores Recovered . | . . . . . . . . . . Used . | . . . . . . . . . . Hacking Detections 39 | . 8 . 15 . . . 9 4 3 Full Trace Events 3 | . 1 . . . . . . 2 . Feedback Events 1 | . 1 . . . . . . . . Corruption 1 | . 1 . . . . . . . . Feedback Blocked . | . . . . . . . . . . Robot Schematics Acquired . | . . . . . . . . . . Robots Built . | . . . . . . . . . . Authchips . | . . . . . . . . . . Time . | . . . . . . . . . . Total Robot Build Rating . | . . . . . . . . . . Part Schematics Acquired 2 | . . . 1 . . . 1 . . Parts Built . | . . . . . . . . . . Authchips . | . . . . . . . . . . Time . | . . . . . . . . . . Total Part Build Rating . | . . . . . . . . . . Parts Repaired 4 | . 2 . 1 . . . 1 . . Time 128 | . 52 . 38 . . . 38 . . Parts Recycled . | . . . . . . . . . . Recycled Matter . | . . . . . . . . . . Retrieved Matter . | . . . . . . . . . . Retrieved Components 19 | . . . 10 . . . 9 . . Parts Scanalyzed 2 | . . . 1 . . . 1 . . Part Schematics Acquired 2 | . . . 1 . . . 1 . . Parts Damaged . | . . . . . . . . . . Bothacking | -11 -10 -10 -9 -9 -9 -8 -8 -8 -8 ------------ Run | Yrd Mat Min Mat Min Exi Min Mat Gar Mat Used RIF Installer 1 | . . . . . . . . 1 . Robots Hacked 12 | . 3 . . . 5 . 1 1 2 Non-combat 7 | . 3 . . . 3 . 1 . . Combat 5 | . . . . . 2 . . 1 2 Robot Hacks Applied 18 | . 3 . . . 9 . 1 3 2 parse_system 12 | . 1 . . . 9 . 1 1 . no_distress 2 | . 2 . . . . . . . . go_dormant 1 | . . . . . . . . 1 . formatsys_high 3 | . . . . . . . . 1 2 Relay Couplers Released 16 | . . . . . . . . 14 2 Machine Destruction 16 | . . . . . . . . 14 2 Attached 2 | . . . . . . . . 1 1 Fabnet Peak Effective % . | . . . . . . . . . . Robots Rewired 5 | . . . . . . . . 5 . Allies Hacked . | . . . . . . . . . . Hacks Repelled . | . . . . . . . . . . Allies | -11 -10 -10 -9 -9 -9 -8 -8 -8 -8 -------- Run | Yrd Mat Min Mat Min Exi Min Mat Gar Mat Total Allies 17 | . . 3 . 5 . . 1 6 2 Largest Group 3 | . . 3 3 2 1 . 1 3 2 Highest-Rated Group 75 | . . 40 40 62 31 . 10 75 30 Highest-Rated Ally 39 | . . 16 16 31 31 . 10 39 15 Total Orders 7 | . . . 2 3 . . 2 . . ROAM 1 | . . . 1 . . . . . . FOLLOW 2 | . . . 1 1 . . . . . RETURN 4 | . . . . 2 . . 2 . . Ally Attacks 89 | . . 2 16 31 . . . 22 18 Total Damage 1138 | . . 13 156 432 . . . 211 326 Kills 13 | . . 1 1 4 . . . 3 4 Allies Corrupted . | . . . . . . . . . . Allies Melted . | . . . . . . . . . . Intel | -11 -10 -10 -9 -9 -9 -8 -8 -8 -8 ------- Run | Yrd Mat Min Mat Min Exi Min Mat Gar Mat Robot Analysis Total 8 | . 5 . 2 . . . . . 1 Derelict Logs Recovered 2 | . . 1 . 1 . . . . . Drone Launches 9 | . . . . 4 . . 2 . 3 Drone Recoveries 9 | . . . . 4 . . 2 . 3 Exploration | -11 -10 -10 -9 -9 -9 -8 -8 -8 -8 ------------- Run | Yrd Mat Min Mat Min Exi Min Mat Gar Mat Turns Passed 16612 | 118 2100 1218 2749 1137 626 659 3177 3694 1134 Spaces Moved 7997 | 47 1065 699 1237 633 380 391 1423 1669 453 Core 9 | 8 . . . . . . . . 1 Treads 7790 | 39 1065 558 1196 633 380 391 1423 1657 448 Legs . | . . . . . . . . . . Wheels 182 | . . 141 41 . . . . . . Hover . | . . . . . . . . . . Flight 16 | . . . . . . . . 12 4 Fastest Speed 50 | 50 160 95 95 160 160 160 151 160 160 Average Speed 167 | 141 160 150 173 161 160 160 159 187 168 Slowest Speed 1640 | 160 240 240 240 240 160 160 305 1640 850 Overloaded Moves . | . . . . . . . . . . Propulsion Burnouts . | . . . . . . . . . . Robots Hopped . | . . . . . . . . . . Cave-ins Triggered . | . . . . . . . . . . Exploration Rate (%) 75 | 4 96 98 87 97 71 83 85 98 37 Regions Visited 9 Branch Regions 4 Pre-discovered Areas 2 | . . . . 1 1 . . . . Known Exits Taken 2 | . . . . . . 1 1 . . Unknown Exits Taken 6 | 1 1 1 1 1 1 . . . . Scrap Searched 5 | . . 1 . 2 . 2 . . . Spaces Dug 2 | . . . . . . . 1 . 1 Terrain Destroyed 273 | . 13 44 67 6 . 22 97 2 22 Melee 2 | . . . . . . . 1 . 1 Projectile 3 | . . . 2 . . . . 1 . AOE 268 | . 13 44 65 6 . 22 96 1 21 Terrain Rammed . | . . . . . . . . . . Walls Destroyed . | . . . . . . . . . . Machines Disabled . | . . . . . . . . . . Actions | -11 -10 -10 -9 -9 -9 -8 -8 -8 -8 --------- Run | Yrd Mat Min Mat Min Exi Min Mat Gar Mat Total 10023 | 76 1337 787 1624 712 397 411 1997 2017 665 Wait 714 | . 122 11 140 34 . 6 243 97 61 Move 7989 | 46 1064 698 1236 632 379 390 1423 1668 453 Hop . | . . . . . . . . . . Pick Up 155 | 10 24 12 45 7 1 . 25 20 11 Fast Attach 61 | . 1 . 4 2 . 1 22 22 9 Attach 38 | 7 2 5 4 2 . . 3 6 9 Detach 3 | . . . . . . . 1 . 2 Swap 180 | 1 17 19 32 10 6 4 48 26 17 Drop 177 | . 12 5 46 7 2 2 49 33 21 Fire 611 | 12 61 37 116 17 . 7 163 119 79 Melee 39 | . 4 . . . 9 . 3 20 3 Ram . | . . . . . . . . . . Kick . | . . . . . . . . . . Crush 5 | . . . 1 1 . 1 2 . . Escape Stasis 6 | . . . . . . . . 6 . Rewire . | . . . . . . . . . . Trap 45 | . 30 . . . . . 15 . . Miscellaneous . | . . . . . . . . . . Route ------- -11/Scrapyard -10/Materials (discovered 4 exits: *Mat x3 / *Min) -10/Mines (discovered 2 exits: *Mat x2) -9/Materials (discovered 5 exits: *Mat x2 / [*Min] / [*Sto x2]) -9/Mines (discovered 4 exits: *Mat x2 / *Exi / [*Zio]) -9/Exiles -8/Mines -8/Materials (discovered 4 exits: [*Fac x3] / Gar) -8/Garrison (discovered 4 exits: *Mat x4) -8/Materials (discovered 1 exit: [*Fac]) History --------- Turn | Location | Event 17 | -11/Scrapyard | Discovered new exit (range 16) 119 | -11/Scrapyard | Entered Materials 301 | -10/Materials | Build established: Mutant 489 | -10/Materials | Discovered new exit (range 15) 1396 | -10/Materials | Discovered new exit (range 11) 1505 | -10/Materials | Discovered new exit (range 5) 1916 | -10/Materials | Discovered new exit (range 16) 1971 | -10/Materials | Repaired Lgt. Treads 2000 | -10/Materials | Repaired Lgt. Treads 2219 | -10/Materials | Entered Mines 2426 | -10/Mines | Discovered new exit (range 8) 2464 | -10/Mines | Assembled infested the area 2464 | -10/Mines | Met a Derelict who couldn't figure out how to use a Trap Extractor 2469 | -10/Mines | Assisted by a Guerilla fighting off Assembled 2480 | -10/Mines | Core integrity fell below 50% 2514 | -10/Mines | Lost 3 parts (1n1u1w) 2528 | -10/Mines | Destroyed 11 combat bots 2873 | -10/Mines | Learned location of 1 exit from Materials 2897 | -10/Mines | Discovered new exit (range 15) 3086 | -10/Mines | Found the Drone Emporium 3093 | -10/Mines | Found Prototype Device 3094 | -10/Mines | Identified Splice Drone Bay 3197 | -10/Mines | Assisted by bots powering up and referring to "LRC-V3" 3437 | -10/Mines | Entered Materials 3437 | -9/Materials | Accompanied by 3 allies 3437 | -9/Materials | Evolved 2 slots: Propulsion x1, Utility x1 3438 | -9/Materials | Identified exit to Materials 3737 | -9/Materials | Lost 3 allies 3986 | -9/Materials | Build established: Scavenger-Mutant 4846 | -9/Materials | Discovered new exit (range 16) 4990 | -9/Materials | Discovered new exit (range 9) 5335 | -9/Materials | Discovered new exit (range 9) 5335 | -9/Materials | Discovered exit to Materials (range 13) 5465 | -9/Materials | Central database locked down 5741 | -9/Materials | Repaired Imp. Light Armor Plating? 5837 | -9/Materials | First assault squad dispatched 6186 | -9/Materials | Entered Mines 6530 | -9/Mines | Received a Mining Laser from a helpful Derelict 6589 | -9/Mines | Met a Derelict testing a Signal Generator 6609 | -9/Mines | Found Signal Generator 6743 | -9/Mines | Discovered exit to Materials (range 7) 6812 | -9/Mines | Deemed a non-threat by the Exiles lab entrance 6812 | -9/Mines | Discovered new exit (range 5) 6943 | -9/Mines | A Derelict revealed a hidden shortcut to a safe place 7041 | -9/Mines | Discovered exit to Materials (range 8) 7054 | -9/Mines | Learned location of Storage (-9) 7323 | -9/Mines | Entered Exiles 7323 | -9/Exiles | Accompanied by 1 ally 7353 | -9/Exiles | Led the pair of lost Derelicts to a safe place 7370 | -9/Exiles | Met 8R-AWN 7423 | -9/Exiles | Met EX-HEX 7568 | -9/Exiles | Met EX-DEC 7625 | -9/Exiles | Met EX-BIN 7705 | -9/Exiles | Aligned with FarCom system 7707 | -9/Exiles | Given EX-Vault access code 7744 | -9/Exiles | Opened EX-Vault 7757 | -9/Exiles | Found 0b10 Alert Chip 7796 | -9/Exiles | Warned to stay clear of 0b10 Research branches 7849 | -9/Exiles | Learned location of Zion (-7) 7927 | -9/Exiles | Discovered new exit (range 14) 7949 | -9/Exiles | Left Exiles lab with 0b10 Alert Chip 7949 | -9/Exiles | Entered Mines 8019 | -8/Mines | Discovered exit to Materials (range 15) 8608 | -8/Mines | Entered Materials 8608 | -8/Materials | Evolved 2 slots: Propulsion x1, Utility x1 8642 | -8/Materials | Build established: Mutant 8985 | -8/Materials | Build established: Scavenger-Mutant 10129 | -8/Materials | Build established: Mutant 10562 | -8/Materials | Discovered new exit (range 15) 10964 | -8/Materials | Discovered new exit (range 11) 11135 | -8/Materials | Repaired Hrd. Medium Armor Plating 11408 | -8/Materials | First assault squad dispatched 11412 | -8/Materials | Discovered new exit (range 15) 11650 | -8/Materials | Destroyed 7 combat bots 11651 | -8/Materials | Lost 4 parts (2n2u) 11761 | -8/Materials | Build established: Scavenger-Mutant 11785 | -8/Materials | Identified exit to Garrison 11785 | -8/Materials | Entered Garrison 12401 | -8/Garrison | Triggered checkpoint 12404 | -8/Garrison | Triggered checkpoint 12626 | -8/Garrison | Discovered new exit (range 10) 12937 | -8/Garrison | Triggered checkpoint 13035 | -8/Garrison | Discovered new exit (range 9) 13187 | -8/Garrison | Triggered checkpoint 13387 | -8/Garrison | Triggered checkpoint 13460 | -8/Garrison | Discovered new exit (range 5) 13673 | -8/Garrison | Discovered new exit (range 14) 13771 | -8/Garrison | Triggered checkpoint 13881 | -8/Garrison | Core integrity fell below 50% 13885 | -8/Garrison | P-60 Hacker assimilated allied HH-S78(h) 14607 | -8/Garrison | Installed Relay Interface Framework 14687 | -8/Garrison | System corruption reached 10% 14707 | -8/Garrison | Garrison Relay disabled 14963 | -8/Garrison | Triggered checkpoint 15201 | -8/Garrison | Garrison Relay disabled 15309 | -8/Garrison | Garrison Relay disabled 15360 | -8/Garrison | Garrison Relay disabled 15479 | -8/Garrison | Entered Materials 15479 | -8/Materials | Accompanied by 1 ally 15879 | -8/Materials | First assault squad dispatched 15971 | -8/Materials | Garrison activated, responded to threat 16010 | -8/Materials | Core integrity fell below 20% 16589 | -8/Materials | Discovered new exit (range 12) 16613 | -8/Materials | Destroyed by X-57 Shotgunner with High-powered Shotgun Last Messages --------------- 16538_ System corrupted: Component data lost. 16568_ ALERT: Suspicious intruders detected, dispatching Specialist reinforcements to area. 16570_ BYV%2H#L QCL8#JM2J03NN1ZOG&SFE0 Q|P1JT 16587_ System corrupted: Substantial component data lost. 16589_ EXIT=FOUND 16592_ Lgt. Treads destroyed. 16592_ Slug penetrates Wall. 16592_ Adv. Beam Cannon destroyed. 16596_ Penetrated by Slug. 16596_ Hacking Suite destroyed. 16596_ Adv. Heat Sink destroyed. 16596_ Electrolysis Chamber disabled. 16598_ Knocked back. 16605_ Slug penetrates Electrolysis Chamber. 16606_ HTFMLZ:I>FQ0T5UZ:R/U5MEIZZOC06|K 16607_ Penetrated by Slug. 16609_ Knocked back. Map ----- +----------------------------------------------------+ | ?????????????????????????????????# + [ # | | ?????????????????????????????????# ] # ! #### | | ?????????????????????????????????# # [[[ #??? | | ??????????????????????########???######?###[###??? | | ??????????????????????# * #????????????#[#????? | | ??????????????????????# #????????????#%#????? | | ??????????????????????# #????????????#|#????? | | ??????????????????????# ! #?????########!###### | | ??????????????????????# #?????#//= ==#%# | | ???????????????????????? ??????#//=[==#*# | | ???????????????????????###+###?????#* [! #[# """" | | ???????????????????????# #######%%= #!# """" | | ???????????????????????# = # """" | | ???????????????????????# %+["""" | | ???????????????????????# x [#="""" | | ???????????????????????# ################ """" | | ???????????????????????### ###??????????????# """" | | ?????????????????????????# ###########??????# | | ?????????????????????????# ## #??????# | | ?????????????????????????# + #??????###### | | ?????????????????????????# ## #???????????? | | ?????????????????????????# ## #???????????? | | ?????????????????????????# ## #???????????? | | ???????????????????####### ## #???????????? | | ???????????????????# # ## #???????????? | | ???????????????????# """ @ ## #???????????? | | ??????????????????## """ # ## #???????????? | | ??????????????????#; # ;;####+####???????????? | | ??????????????????## % % x #?????????? | | ???????????????????# """ " #?????????? | | ???????????????????# """ # H #?????????? | | ???????????????????# """ ########+"" < #?????????? | | ???????????????????# #???????????? #?????????? | | ???????????????????# #???????????????????????? | | ???????????????????# #???????????????????????? | | ???????????????????# #???????????????????????? | | ???????????????????#######???????????????????????? | | ?????????????????????????????????????????????????? | | ?????????????????????????????????????????????????? | | ?????????????????????????????????????????????????? | | | | | | | | | | | | | | | | | | | | | +----------------------------------------------------+ Best States ------------- Heat Dissipation 64 Energy Generation 18 Energy Capacity 310 Matter Stores 300 Matter Capacity 300 Sight Range 16 Terrain Scan Density 10 Additional Mass Support 9 Armor Coverage 600 Phase Shifting 5 Evasion (%) 50 Recoil Reduction 4 Offensive Hacking 10 Relay Coupler Types 1 Relay Coupler Value 29 Item Schematics ----------------- Hacking Suite | -9/Materials | Scanalyzed System Shield | -8/Materials | Scanalyzed Robot Schematics ------------------ None Fabricated ------------ Nothing Alien Tech Used ----------------- None Achievements -------------- Assimilation Complete Exterminator Challenges ------------ None Game ------ Seed ScrapAutogunPit Manual? 0 Play Time 03:48:08 Cumulative 53.3 hours Start 2024.05.13 @ 16:08:41 End 2024.05.13 @ 20:45:07 Sessions 1 Manual Loads 0 Difficulty Rogue Special Mode None Game No. 60 Rogue 55 Adventurer 5 Explorer 0 Win Type - Total 0 Types 0/0/0/0/0/0/0/0/0 Lore% 28 Gallery% 34 Achievement% 26 Wizard Run 0 Options --------- Layout 2 ASCII 0 Keyboard 0 Movement Mouse Keybinds 0 Fullscreen 2 Font 24/Smallcaps Map View 50x44 Zoom Use 0% Tactical HUD 1 Map Filters NONE Filters NONE Steam 1 RUN: 5926ee5e-a3eb-4e08-bbb9-5b37b3a9c672